Cogmind - Beta 16.1 @@@ ROGUE MODE // 2026.02.14 @ 00:08:07 Player: Fantastic Ms. Fox Result: Destroyed by Autobeam Turret with Autobeam Performance ------------- Evolutions (0) 0 Regions Visited (3) 600 Robots Destroyed (18) 90 Value Destroyed (503) 503 Prototype IDs (3) 60 Alien Tech Used (0) 0 Bonus (0) 0 TOTAL SCORE: 1253 Bonus ------- None Cogmind --------- Core Integrity 0/250 Matter 257/300 Energy 76/100 System Corruption 0% Temperature Cool (6) Movement Walking (190) Ox1 Location -10/Subcaves Parts ------- > --- POWER (1) -------- (None) > --- PROPULSION (2) --- Aluminum Leg > --- UTILITY (2) ------ Small Storage Unit Structural Scanner > --- WEAPON (2) ------- Particle Gun Rocket Launcher > --- INVENTORY (8) ---- Heat Sink Signal Interpreter Terrain Scanner Small Laser Grenade Launcher Datajack Makeshift Spear Peak State ------------ > --- POWER ------------ Ion Engine > --- PROPULSION ------- Aluminum Leg Aluminum Leg > --- UTILITY ---------- Small Storage Unit Structural Scanner > --- WEAPON ----------- Small Laser Small Laser > --- INVENTORY -------- Aluminum Leg Heat Sink Terrain Scanner Small Laser Small Laser Particle Gun Grenade Launcher Rocket Launcher [Rating: 8] Favorites ----------- Power Ion Engine Engine Ion Engine Propulsion Aluminum Leg Leg Aluminum Leg Utility Small Storage Unit Device Structural Scanner Storage Small Storage Unit Weapon Small Laser Energy Gun Small Laser Launcher Rocket Launcher Build | -11 -10 -10 -10 ------- Run | Yrd Mat Min Sub Slots Evolved . | . . . . Power . | . . . . Propulsion . | . . . . Utility . | . . . . Weapon . | . . . . Parts Attached 19 | 6 9 3 1 Power 2 | 1 1 . . Engine 2 | 1 1 . . Core . | . . . . Reactor . | . . . . Propulsion 5 | 2 2 1 . Treads . | . . . . Leg 5 | 2 2 1 . Wheel . | . . . . Hover . | . . . . Flight . | . . . . Utility 4 | 1 3 . . Device 3 | 1 2 . . Storage 1 | . 1 . . Processor . | . . . . Hackware . | . . . . Protection . | . . . . Artifact . | . . . . Weapon 8 | 2 3 2 1 Energy Gun 7 | 2 3 2 . Energy Cannon . | . . . . Ballistic Gun . | . . . . Ballistic Cannon . | . . . . Launcher 1 | . . . 1 Special Weapon . | . . . . Impact Weapon . | . . . . Slashing Weapon . | . . . . Piercing Weapon . | . . . . Special Melee Weapon . | . . . . Unidentified Prototypes . | . . . . Parts Lost 12 | . 8 2 2 Power 2 | . 1 1 . Propulsion 4 | . 3 . 1 Utility . | . . . . Weapon 6 | . 4 1 1 Highest Loss Streak 4 | . 4 2 2 To Critical Strikes . | . . . . Average Backups 5 | . 5 7 8 Power . | . . . . Propulsion . | . . . . Utility 1 | . 1 3 3 Weapon 3 | . 3 3 4 Tool/Special . | . . . . Unused Backups 6 | . . . 6 Power . | . . . . Propulsion . | . . . . Utility 2 | . . . 2 Weapon 3 | . . . 3 Tool/Special 1 | . . . 1 Average Slot Usage (%) 84 | . 86 82 81 Engine 7 | . 11 . . Leg 23 | . 21 26 25 Device 16 | . 17 14 14 Storage 10 | . 8 14 14 Energy Gun 26 | . 25 27 25 Peak Build Rating 8 | 6 8 8 8 Average Rating 6 | 3 6 7 7 On Entrance 5 | . 6 6 8 Avg Prop Armor Cover (%) . | . . . . Naked Turns . | . . . . Heaviest Build 13 | 7 13 10 10 Greatest Support 20 | 20 20 20 20 Greatest Overweight (x) 4 | . 4 . . Average Overweight (x) . | . . . . Largest Inventory Capacity 8 | 5 8 8 8 Average Capacity 7 | 5 6 8 8 Most Carried 8 | 2 8 8 8 Average Carried 6 | . 5 7 7 Final Capacity 8 | 5 8 8 8 Final Carried 8 | 2 8 8 7 Class Distribution -------------------- 57% | Scavenger-Mutant 42% | Mutant Dominant Class ---------------- Mutant | -10/Materials Scavenger-Mutant | -10/Mines Scavenger-Mutant | -10/Subcaves Resources | -11 -10 -10 -10 ----------- Run | Yrd Mat Min Sub Matter Collected 330 | 250 60 20 . Remotely . | . . . . Salvage Created 615 | 43 480 87 5 Parts 35 | 2 22 3 8 Haulers Intercepted . | . . . . Recyclers Shooed 2 | . 1 1 . Parts Field Recycled . | . . . . Retrieved Matter . | . . . . Parts Self-Destructed . | . . . . Prevented . | . . . . Parts Restored . | . . . . Kills | -11 -10 -10 -10 ------- Run | Yrd Mat Min Sub Combat Hostiles Destroyed 17 | 1 10 2 4 Guns 13 | 1 10 2 . AOE 4 | . . . 4 Classes Destroyed 3 | 1 2 . . Recycler 1 | . 1 . . Swarmer 5 | . 1 . 4 Grunt 12 | 1 9 2 . Best Kill Streak 5 | 1 5 1 4 Combat Bots Only 5 | 1 5 1 4 Max Kills in Single Turn 2 | 1 1 1 2 Gunslinging . | . . . . Exploded 2 | . . . 2 Melee . | . . . . Uniques/NPCs Destroyed . | . . . . Combat | -11 -10 -10 -10 -------- Run | Yrd Mat Min Sub Hostile Shots Fired 159 | 1 101 25 32 Missed 46 | 1 27 7 11 Hits 113 | . 74 18 21 Projectile 113 | . 74 18 21 Damage Taken 1220 | . 814 245 161 Core 255 | . 146 53 56 Absorbed by Shields . | . . . . Core Remaining (%) 100 | 100 . . . Volleys Fired 66 | 1 47 14 4 Largest 2 | 2 2 2 2 Hottest 105 | 90 90 105 98 Shots Fired 114 | 2 79 26 7 Gun 111 | 2 79 26 4 Cannon . | . . . . Launcher 3 | . . . 3 Special . | . . . . Kinetic . | . . . . Thermal 111 | 2 79 26 4 Explosive 3 | . . . 3 Electromagnetic . | . . . . Robot Hit Streak 13 | 2 13 6 2 Robot Miss Streak 6 | . 6 2 2 Penetration Max . | . . . . Secondary Targets 3 | . 2 1 . Max Gunslinging Chain 1 | . 1 1 . Shots Hit Robots 74 | 2 53 17 2 Core Hits 35 | 2 24 5 4 Critical Kills . | . . . . Critical Parts Destroyed . | . . . . Critical Strikes 2 | 1 1 . . Burn 2 | 1 1 . . Melee Attacks . | . . . . Impact . | . . . . Slashing . | . . . . Piercing . | . . . . Sneak Attacks . | . . . . Combat Hostiles . | . . . . Follow-up Attacks . | . . . . Damage Inflicted 1091 | 22 624 192 253 Guns 838 | 22 624 192 . Cannons . | . . . . Explosions 253 | . . . 253 Melee . | . . . . Ramming . | . . . . Kinetic . | . . . . Thermal 838 | 22 624 192 . Explosive 253 | . . . 253 Electromagnetic . | . . . . Impact . | . . . . Slashing . | . . . . Piercing . | . . . . Highest Corruption . | . . . . Average Corruption . | . . . . Corruption Purged . | . . . . Corruption Blocked . | . . . . Overload Shots . | . . . . Overflow Damage . | . . . . Projectiles . | . . . . Explosions . | . . . . Melee . | . . . . Knockbacks . | . . . . Impact . | . . . . Kinetic . | . . . . Secondary . | . . . . Self-Inflicted Damage 32 | . . . 32 Shots 1 | . . . 1 Rammed . | . . . . Targets Rammed . | . . . . Kicked . | . . . . Crushed . | . . . . Highest Temperature 163 | 30 141 163 . Average Temperature 64 | 18 56 87 . Received Heat Transfer 588 | . 396 150 42 Siege Activations . | . . . . Martial Activations . | . . . . Shielding Activations . | . . . . Robots Disrupted . | . . . . Combat Hostiles . | . . . . Robots Corrupted . | . . . . Combat Hostiles . | . . . . Parts Fried . | . . . . Impact Corruptions . | . . . . Robots Melted . | . . . . Combat Hostiles . | . . . . Parts Melted 5 | 1 3 1 . Heat Transferred 2214 | 136 1641 437 . Parts Sabotaged . | . . . . Parts Stolen . | . . . . Parts Stripped . | . . . . Power Chain Reactions . | . . . . Alert | -11 -10 -10 -10 ------- Run | Yrd Mat Min Sub Maximum Alert Level . | . . . . Low Security (%) 100 | 100 100 100 . Level 1 . | . . . . Level 2 . | . . . . Level 3 . | . . . . Level 4 . | . . . . Level 5 . | . . . . High Security . | . . . . Max Security . | . . . . Peak Influence 50 | 20 50 20 . Initial 13 | . 13 3 . Average 9 | 3 13 2 . Influence Increases 497 | 20 317 50 110 Destroy 0b10 Robot/C 340 | 20 200 40 80 Destroy 0b10 Robot/NC 5 | . 5 . . Destroy Leader 50 | . 40 10 . Successful Hack 42 | . 42 . . Lose Combat Pursuer 60 | . 30 . 30 Influence Decreases 387 | . 327 60 . Entered New Map 14 | . 7 7 . Time Decay 290 | . 250 40 . Lost Part 83 | . 70 13 . Squads Dispatched 2 | . 2 . . Investigation 2 | . 2 . . Extermination . | . . . . Reinforcement . | . . . . Assault . | . . . . Garrison . | . . . . Intercept . | . . . . Searches Triggered . | . . . . Construction Impeded . | . . . . Haulers Reinforced . | . . . . Active Scanning Responses . | . . . . Cargo Convoy Interrupts . | . . . . Stealth | -11 -10 -10 -10 --------- Run | Yrd Mat Min Sub Distress Signals . | . . . . Communications Jammed . | . . . . Distress Signals . | . . . . Times Spotted 26 | 1 19 2 4 Peak Tracking Total 6 | 1 6 2 6 Tactical Retreats 2 | . 1 . 1 Traps | -11 -10 -10 -10 ------- Run | Yrd Mat Min Sub Traps Triggered 2 | . 2 . . Indirectly . | . . . . Trap Hack Attempts . | . . . . Triggered . | . . . . Disarmed . | . . . . Reprogrammed . | . . . . Reused . | . . . . Traps Extracted . | . . . . Installed . | . . . . Triggered . | . . . . Machines | -11 -10 -10 -10 ---------- Run | Yrd Mat Min Sub Machines Disabled . | . . . . Max in Single Turn . | . . . . Machines Repaired . | . . . . Machines Dismantled . | . . . . Machines Sabotaged . | . . . . Overloaded Fab Kills . | . . . . Hacking | -11 -10 -10 -10 --------- Run | Yrd Mat Min Sub Machines Accessed 8 | . 8 . . Terminals 8 | . 8 . . Fabricators . | . . . . Repair Stations . | . . . . Recycling Units . | . . . . Scanalyzers . | . . . . Garrison Access . | . . . . Total Hacks 24 | . 24 . . Successful 13 | . 13 . . Failed 11 | . 11 . . Catastrophic . | . . . . Database Lockouts . | . . . . Manual 2 | . 2 . . Terminals 24 | . 24 . . Fabricators . | . . . . Repair Stations . | . . . . Recycling Units . | . . . . Scanalyzers . | . . . . Garrison Access . | . . . . Terminal Hacks 13 | . 13 . . Prototype ID Bank 2 | . 2 . . Level Access Points 1 | . 1 . . Branch Access Points 1 | . 1 . . Emergency Access Points 1 | . 1 . . Locate Traps 3 | . 3 . . Dispatch Records 1 | . 1 . . Zone Layout 4 | . 4 . . Fabricator Hacks . | . . . . Repair Station Hacks . | . . . . Recycling Unit Hacks . | . . . . Scanalyzer . | . . . . Garrison Access Hacks . | . . . . Unauthorized Hacks . | . . . . Terminals . | . . . . Fabricators . | . . . . Repair Stations . | . . . . Recycling Units . | . . . . Scanalyzers . | . . . . Garrison Access . | . . . . Data Cores Recovered . | . . . . Used . | . . . . Hacking Detections 7 | . 7 . . Full Trace Events . | . . . . Feedback Events . | . . . . Feedback Blocked . | . . . . Robot Schematics Acquired . | . . . . Robots Built . | . . . . Authchips . | . . . . Time . | . . . . Total Robot Build Rating . | . . . . Part Schematics Acquired . | . . . . Parts Built . | . . . . Authchips . | . . . . Time . | . . . . Total Part Build Rating . | . . . . Part Studies Acquired . | . . . . Parts Repaired . | . . . . Time . | . . . . Parts Recycled . | . . . . Recycled Matter . | . . . . Retrieved Matter . | . . . . Retrieved Components . | . . . . Parts Scanalyzed . | . . . . Part Schematics Acquired . | . . . . Parts Damaged . | . . . . Bothacking | -11 -10 -10 -10 ------------ Run | Yrd Mat Min Sub Used RIF Installer . | . . . . Robots Hacked . | . . . . Non-combat . | . . . . Combat . | . . . . Robot Hacks Applied . | . . . . Relay Couplers Released . | . . . . Fabnet Peak Effective % . | . . . . Robots Rewired . | . . . . Allies Hacked . | . . . . Hacks Repelled . | . . . . Allies | -11 -10 -10 -10 -------- Run | Yrd Mat Min Sub Total Allies . | . . . . Largest Group . | . . . . Highest-Rated Group . | . . . . Highest-Rated Ally . | . . . . Total Orders . | . . . . Ally Attacks . | . . . . Total Damage . | . . . . Kills . | . . . . Allies Corrupted . | . . . . Allies Melted . | . . . . Intel | -11 -10 -10 -10 ------- Run | Yrd Mat Min Sub Active Infowar (turns) 1074 | . 534 424 116 Structural 1074 | . 534 424 116 Robot Analysis Total . | . . . . Derelict Logs Recovered 2 | . . 1 1 Drone Launches . | . . . . Drone Recoveries . | . . . . Exploration | -11 -10 -10 -10 ------------- Run | Yrd Mat Min Sub Turns Passed 1513 | 78 895 424 116 Spaces Moved 943 | 63 490 303 87 Core 16 | 15 1 . . Treads . | . . . . Legs 927 | 48 489 303 87 Wheels . | . . . . Hover . | . . . . Flight . | . . . . Fastest Speed 50 | 50 120 120 120 Average Speed 133 | 103 147 120 120 Slowest Speed 250 | 120 250 120 120 Overloaded Moves . | . . . . Propulsion Burnouts . | . . . . Robots Hopped . | . . . . Potential Cave-ins . | . . . . Cave-ins Triggered . | . . . . Exploration Rate (%) 50 | 6 95 86 13 Regions Visited 3 Branch Regions 2 Pre-discovered Areas 1 | . . . 1 Known Exits Taken 2 | . 1 1 . Unknown Exits Taken 1 | 1 . . . Scrap Searched 1 | . . 1 . Spaces Dug . | . . . . Terrain Destroyed 17 | . . . 17 Melee . | . . . . Projectile . | . . . . AOE 17 | . . . 17 Terrain Rammed . | . . . . Walls Destroyed . | . . . . Machines Disabled . | . . . . Actions | -11 -10 -10 -10 --------- Run | Yrd Mat Min Sub Total 1085 | 71 583 337 94 Wait 45 | . 27 16 2 Move 940 | 62 489 302 87 Hop . | . . . . Pick Up 13 | 2 9 2 . Fast Attach 12 | 6 5 1 . Attach 7 | . 4 2 1 Detach 1 | . 1 . . Swap . | . . . . Drop 1 | . 1 . . Fire 66 | 1 47 14 4 Melee . | . . . . Ram . | . . . . Kick . | . . . . Crush . | . . . . Escape Stasis . | . . . . Rewire . | . . . . Trap . | . . . . Miscellaneous . | . . . . Route ------- -11/Scrapyard -10/Materials (discovered 5 exits: *Mat x3 / *Min x2) -10/Mines (discovered 3 exits: *Mat x2 / *Sub) -10/Subcaves History --------- Turn | Location | Event 2 | -11/Scrapyard | Met Revision 17 61 | -11/Scrapyard | Discovered new exit (range 8) 79 | -11/Scrapyard | Entered Materials 213 | -10/Materials | Lost 4 parts (1p1n2w) 246 | -10/Materials | Discovered new exit (range 7) 400 | -10/Materials | Discovered new exit (range 12) 480 | -10/Materials | Build established: Scavenger-Mutant 542 | -10/Materials | Identified exit to Materials 542 | -10/Materials | Identified exit to Mines 570 | -10/Materials | Core integrity fell below 50% 593 | -10/Materials | Lost 3 parts (2n1w) 870 | -10/Materials | Build established: Mutant 974 | -10/Materials | Entered Mines 1032 | -10/Mines | Discovered exit to Materials (range 15) 1048 | -10/Mines | Identified exit to Subcaves 1089 | -10/Mines | A weapon hastily lodged in a ceiling crevice suddenly fell to the ground 1236 | -10/Mines | Discovered exit to Materials (range 8) 1309 | -10/Mines | Build established: Scavenger-Mutant 1398 | -10/Mines | Entered Subcaves 1497 | -10/Subcaves | Learned location of Zion (-6) 1497 | -10/Subcaves | Met a Zionite searching for "candidates" 1499 | -10/Subcaves | Core integrity fell below 20% 1514 | -10/Subcaves | Destroyed by Autobeam Turret with Autobeam Last Messages --------------- Found Flight Unit. Found Huge Storage Unit. Found 50 Matter. K-01 Serf cleans the Laser Drill. EXIT=FOUND: MATERIALS LOCATION=SUBCAVES AMBIENT_HEAT=-10 GOAL=ESCAPE Acquired derelict log, extracted data. Data stored: Storage entrances (x1). GB-6FR(z): "She is not going to be happy we haven't found any suitable candidates yet." GB-6FR(z): "Hey you! It's really dangerous down here, I feel that you could die at any moment. For your health and safety might I suggest a trip to Zion?" World map updated: -6/Zion. Aluminum Leg destroyed. Sml. Laser destroyed. S-10 Pest destroyed. Map ----- +----------------------------------------------------+ | ### #### ##????????????????????????????? | | ### ### ????????????????????????????? | | ?#### ###??? ????????????????????????????? | | ?##### ###????? ?????????????????????????????? | | ###### ###????????????????????????????????????? | | ### ###?? ?????????????????????????????????? | | ###?? ????????????????????????????????? | | # ##### ???????????????????????????????? | | ## ##### ???????????????????????????????? | | ## ## ??????????????????????????????? | | ## ??????????????????????????????? | | # ??????????????????????????????? | | ## ??????????????????????????????? | | #### ???????????????????????????????? | | ##### ## ???????????????????????????????? | | #####? ## ?????????????????###???????????? | | ###? ????????????????#####???????????? | | ##### ##???????????????????### ##???????????? | | #### ###??????????????????### ???????????? | | ## ###?????????????????###" ??????????????? | | ###????????????#######%# ??????????????? | | ###??????????######## ## ??????????????? | | ##??????????### ## ###???????????????? | | ##??????????## #$###????????????????? | | ###?????????## # ?????????????????? | | ## ####????????##@ # ##### ?????????? | | ## ############# ##### ????????? | | ## ############ [ ???????? | | # # # # * ???????? | | ## [* ???????? | | ### [ ##### ????????? | | ####### # ## % ##### ?????????? | | ### ### ####### ## ##?????????????? | | #### ########## ###?????????????? | | ########### ####??###### %= ###??????????? | | ###?###############???????? ##??????????? | | ###?????????####??????????? ??????????? | | ??????????????????????????? ??????????? | | ?????????????????????????? ??????????? | | ??????????????????????????## ### #??????????? | | ??????????????????????????#############??????????? | | ???????????????????????????############??????????? | | ?????????????????????????????????????????????????? | | ?????????????????????????????????????????????????? | | ?????????????????????????????????????????????????? | | ?????????????????????????????????????????????????? | | ?????????????????????????????????????????????????? | | ?????????????????????????????????????????????????? | | ?????????????????????????????????????????????????? | | ?????????????????????????????????????????????????? | +----------------------------------------------------+ Best States ------------- Heat Dissipation 45 Energy Generation 10 Energy Capacity 250 Matter Stores 300 Matter Capacity 300 Sight Range 16 Terrain Scan Density 10 Evasion (%) 55 Item Schematics ----------------- None Robot Schematics ------------------ None Fabricated ------------ Nothing Repaired ---------- Nothing Studied --------- None Alien Tech Used ----------------- None Achievements -------------- None Challenges ------------ None Game ------ Seed MomentumElectrostormDrive Manual? 0 Play Time 00:16:40 Cumulative 15.6 hours Start 2026.02.13 @ 23:52:43 End 2026.02.14 @ 00:08:07 Sessions 1 Manual Loads 0 Difficulty Rogue Special Mode None Game No. 15 Rogue 15 Adventurer 0 Explorer 0 Win Type - Total 0 Types 0/0/0/0/0/0/0/0/0/0 Lore% 10 Gallery% 13 Achievement% 13 Wizard Run 0 Options --------- Layout 1 ASCII 0 Keyboard 1 Movement Arrows Keybinds 0 Fullscreen 2 Font 24/Smallcaps Map View 50x35 Zoom Use 0% Tactical HUD 0 Map Filters NONE Filters NONE Steam 1 RUN: 78978e73-f66f-4121-a3da-516bff796a4a